bitfinex/quotes_ETHUSD_20260216
["timestamp","ask_amount","ask_price","bid_price","bid_amount"]
[1771262288459,0.0011,1967.4,1967.0,1.27097102]
[1771262288659,0.0011,1967.4,1967.1,0.002]
[1771262288969,0.0011,1967.6,1967.2,1.42]
[1771262289379,0.0011,1967.6,1967.3,0.0009]
[1771262289582,0.0011,1967.6,1967.3,1.2716772]
[1771262291479,0.0011,1967.4,1967.3,1.2716772]
[1771262291660,0.0011,1967.6,1967.3,1.2716772]
[1771262294686,0.0011,1967.8,1967.3,1.75931389]
[1771262295886,0.0011,1968.0,1967.5,1.75828472]
[1771262296089,0.0011,1968.0,1967.6,1.4329]
[1771262297475,0.0011,1968.0,1967.7,0.0009]
[1771262298192,0.0011,1968.0,1967.7,1.27141887]
[1771262299072,0.0011,1968.2,1967.8,1.40453669]
[1771262299277,0.0011,1968.2,1967.9,1.435]
[1771262300469,0.0011,1968.2,1968.0,1.2703252]
[1771262301188,0.0011,1968.2,1968.0,1.2712252]
[1771262303279,0.0011,1968.1,1968.0,1.2712252]
[1771262304319,0.0011,1968.4,1968.0,1.2712252]
[1771262304611,0.48858065,1968.8,1968.0,1.75886189]
[1771262304776,1.27091411,1968.8,1968.0,1.75886189]
[1771262304981,0.48858065,1968.8,1968.0,1.75886189]
[1771262305394,0.48858065,1968.8,1968.1,0.0009]
[1771262305601,0.48748065,1968.7,1968.2,1.441]
[1771262308114,0.48748065,1968.5,1968.3,1.44]
[1771262309590,1.26987352,1968.7,1968.3,1.44]
[1771262309895,0.48748065,1968.5,1968.3,1.44]
[1771262312323,0.48748065,1968.5,1968.3,1.4409]
[1771262312824,0.48748065,1968.7,1968.3,1.4409]
[1771262313014,0.48748065,1968.6,1968.3,1.4409]
[1771262314519,0.48748065,1968.5,1968.3,1.4409]
[1771262315816,0.48858065,1968.5,1968.3,1.4409]
[1771262316596,0.48858065,1968.5,1968.4,0.0009]
[1771262317213,0.0011,1968.6,1968.4,0.0009]
[1771262318599,0.0011,1968.6,1968.3,2.71011266]
[1771262318799,0.0011,1968.6,1968.4,0.0009]
[1771262319524,0.48858065,1968.6,1968.3,1.42789999]
[1771262319823,0.0011,1968.6,1968.3,1.42789999]
[1771262320023,0.0011,1968.6,1968.3,2.69803026]
[1771262328135,0.0011,1968.6,1968.4,0.001]
[1771262331139,0.0011,1968.5,1968.4,0.001]
[1771262332014,0.0011,1968.5,1968.3,0.001]
[1771262332015,0.47789351,1968.5,1968.3,0.001]
[1771262332342,0.47679351,1968.3,1968.0,1.461]
[1771262332715,0.0011,1968.5,1968.1,0.4579358]
[1771262332915,0.0011,1968.5,1968.2,7.44475373]
[1771262333115,0.47789351,1968.5,1968.3,1.46]
[1771262333408,0.47679351,1968.4,1968.3,1.46]
[1771262333832,0.47679351,1968.4,1968.0,1.27132507]
[1771262334035,0.47679351,1968.4,1968.2,1.46]
[1771262334439,1.27111835,1968.5,1968.2,1.46]
[1771262334440,0.0011,1968.5,1968.2,1.46]
[1771262335014,1.74790334,1968.5,1968.2,1.46]
[1771262335215,0.47789351,1968.5,1968.2,1.46]
[1771262336442,0.47789351,1968.5,1968.2,2.73018599]
[1771262336634,0.47789351,1968.5,1968.2,1.46]
[1771262337450,1.74789633,1968.5,1968.2,1.46]
[1771262338018,0.47679351,1968.4,1968.2,1.46]
[1771262340617,0.47679351,1968.3,1968.2,1.46]
[1771262340822,0.0011,1968.5,1968.2,1.46]
[1771262341020,0.0011,1968.8,1968.3,0.4579358]
[1771262341260,0.0011,1968.8,1968.2,2.73018321]
[1771262341421,0.0011,1968.7,1968.2,2.73018321]
[1771262341861,0.47789351,1968.7,1968.1,1.27121213]
[1771262342022,0.47789351,1968.7,1968.3,1.462]
[1771262342349,0.0011,1968.7,1968.3,1.462]
[1771262342651,0.0011,1968.7,1968.4,1.27006705]
[1771262342952,0.0011,1968.8,1968.4,1.27006705]
[1771262343542,0.0011,1968.8,1968.3,7.00020403]
[1771262343543,0.47789351,1968.8,1968.3,2.73208386]
[1771262344159,0.47789351,1968.8,1968.3,1.462]
[1771262344653,0.47679351,1968.6,1968.1,0.001]
[1771262347052,1.27000254,1968.5,1968.1,0.001]
[1771262347361,1.74671618,1968.7,1968.1,0.001]
[1771262347860,1.27095657,1968.8,1968.1,0.001]
[1771262348966,1.27095657,1968.8,1968.1,0.4589358]
[1771262349151,1.27095657,1968.8,1968.2,1.27019611]
[1771262350362,0.0011,1968.8,1968.2,1.27019611]
[1771262350566,0.0011,1968.8,1968.3,0.4579358]
[1771262351541,0.0011,1968.8,1968.4,1.27006705]
[1771262353167,0.0011,1968.7,1968.4,1.27006705]
[1771262355143,0.0011,1968.7,1968.3,0.4579358]
[1771262355344,0.0011,1968.7,1968.2,1.27114056]
[1771262355566,0.0011,1968.7,1968.2,1.74006413]
[1771262356563,0.0011,1968.7,1968.1,6.5438574]
[1771262356564,0.4682491,1968.7,1968.1,0.001]
[1771262356756,0.4682491,1968.7,1968.1,2.54239607]
[1771262357361,0.0011,1968.7,1968.2,1.27114056]
[1771262357865,0.4682491,1968.7,1968.2,1.27114056]
[1771262360577,1.73817285,1968.7,1968.2,1.27114056]
[1771262360786,0.0011,1968.7,1968.2,2.54132163]
[1771262360997,1.27097913,1968.7,1968.2,1.27114056]
[1771262362260,0.4671491,1968.6,1968.2,1.27114056]
[1771262362674,0.4671491,1968.4,1968.1,0.001]
[1771262362897,0.4671491,1968.4,1968.1,1.27214056]
[1771262363098,1.27000254,1968.5,1968.0,0.001]
[1771262363260,0.4671491,1968.5,1968.1,1.27114056]
[1771262363882,1.26998237,1968.6,1968.1,1.27114056]
[1771262364389,1.73713147,1968.6,1968.1,1.27114056]
[1771262365194,1.73713147,1968.6,1968.2,0.001]
[1771262365493,0.0011,1968.5,1968.2,1.27214056]
[1771262367473,0.0011,1968.5,1968.2,2.54233427]
[1771262367676,0.0011,1968.5,1968.2,1.27214056]
[1771262369664,0.0011,1968.5,1968.2,2.54233105]
[1771262369866,0.0011,1968.5,1968.2,1.27214056]
[1771262371909,0.0011,1968.5,1968.2,0.001]
[1771262372112,0.0011,1968.5,1968.3,1.27114056]
[1771262374126,0.0011,1968.5,1968.3,4.01025698]
[1771262375612,0.0011,1968.7,1968.4,1.27004056]
[1771262376109,0.0011,1968.7,1968.5,1.27000254]
[1771262376899,0.0011,1968.7,1968.6,1.474]
[1771262378126,0.0011,1968.7,1968.6,4.01397858]
[1771262378487,0.0011,1968.7,1968.6,2.74393802]
[1771262378785,0.0011,1969.0,1968.7,1.26784056]
[1771262379311,5.07748694,1969.5,1968.8,0.49208284]
[1771262379513,5.07748694,1969.5,1968.9,1.477]
[1771262379689,1.73664357,1969.6,1968.9,2.74484056]
[1771262379884,1.73664357,1969.6,1968.9,3.2369234]
[1771262380091,1.73664357,1969.6,1969.0,1.26968004]
[1771262380304,1.26933682,1969.6,1969.0,1.26968004]
[1771262380888,1.26933682,1969.6,1969.1,1.26784056]
[1771262381494,1.26933682,1969.6,1969.2,1.478]
[1771262382402,1.73655794,1969.7,1969.2,2.74753149]
[1771262382716,1.73655794,1969.7,1969.3,1.26784056]
[1771262387119,1.26923322,1969.7,1969.3,1.26784056]
[1771262387505,1.26921308,1969.8,1969.4,1.26784056]
[1771262388932,0.46513754,1969.5,1969.2,1.478]
[1771262389227,0.46513754,1969.5,1968.9,1.477]
[1771262390827,1.73455969,1969.4,1968.9,1.477]
[1771262391524,1.2693577,1969.5,1968.9,2.74674137]
[1771262391725,1.2693577,1969.5,1968.9,3.2437851]
[1771262391930,1.73557548,1969.6,1968.9,3.2437851]
[1771262396839,1.73557548,1969.6,1969.0,0.49704373]
[1771262397020,1.27043794,1969.6,1969.0,0.49704373]
[1771262399920,1.27043794,1969.6,1969.0,1.76668293]
[1771262400238,0.0011,1969.6,1969.0,1.76668293]
[1771262400635,0.0011,1969.6,1969.0,0.49704373]
[1771262400844,0.46623754,1969.6,1968.9,3.24378588]
[1771262402344,0.46513754,1969.4,1968.9,2.74674215]
[1771262403045,0.46513754,1969.4,1969.0,0.001]
[1771262403548,0.0011,1969.5,1969.0,0.49804373]
[1771262403721,0.0011,1969.7,1969.4,0.49704373]
[1771262404337,0.0011,1969.7,1969.5,1.76640143]
[1771262404545,0.0011,1969.7,1969.6,0.49704373]
[1771262405140,0.0011,1969.7,1969.4,1.76642074]
[1771262405715,0.0011,1969.7,1969.5,0.49704373]
[1771262407228,0.0011,1969.7,1969.6,1.26929325]
[1771262407437,0.0011,1969.7,1969.6,1.76633698]
[1771262407635,0.0011,1969.9,1969.6,1.76633698]
[1771262407832,0.0011,1970.1,1969.7,0.49704373]
[1771262408343,0.0011,1970.1,1969.7,1.98204373]
[1771262409474,0.46623754,1970.1,1969.7,1.485]
[1771262411660,1.26903553,1970.0,1969.7,1.485]
[1771262411826,0.46623754,1970.1,1969.7,1.485]
[1771262412030,0.0011,1970.1,1969.7,2.75421856]
[1771262412754,0.0011,1970.1,1969.7,10.68905624]
[1771262413620,0.0011,1970.1,1969.8,0.49704373]
[1771262414159,0.0011,1970.1,1969.9,1.26909995]
[1771262415736,0.0011,1970.0,1969.9,1.26909995]
[1771262416060,0.0011,1970.2,1969.9,1.75979043]
[1771262416442,0.0011,1970.2,1970.0,1.494]
[1771262416768,0.0011,1970.2,1970.0,1.98469048]
[1771262418064,0.0011,1970.2,1970.1,1.26897111]
[1771262418267,0.0011,1970.2,1970.0,3.25367608]
[1771262418559,0.48337958,1970.2,1969.8,1.499]
[1771262418889,0.0011,1970.2,1969.8,1.499]
[1771262420070,0.0011,1970.2,1969.8,2.76811622]
[1771262421571,0.48227958,1970.1,1969.8,1.499]
[1771262421898,0.48227958,1970.1,1969.5,1.2703224]
[1771262421899,0.48227958,1970.1,1969.6,1.503]
[1771262422099,0.48227958,1969.9,1969.6,1.503]
[1771262424687,0.48227958,1969.8,1969.6,1.503]
[1771262425059,0.48227958,1969.8,1969.5,0.001]
[1771262425275,0.48227958,1969.8,1969.5,0.002]
[1771262425459,0.48227958,1969.8,1969.5,0.001]
[1771262427389,1.75145897,1969.8,1969.5,0.001]
[1771262427881,1.75145897,1969.8,1969.6,0.001]
[1771262428068,1.75255897,1969.8,1969.6,0.001]
[1771262430673,0.48227958,1969.7,1969.4,0.001]
[1771262430856,0.48227958,1969.7,1969.4,0.002]
[1771262431061,0.0011,1969.8,1969.4,1.27142134]
[1771262431863,0.0011,1969.8,1969.4,1.27042134]
[1771262436879,0.0011,1969.8,1969.5,0.001]
[1771262438500,0.48337958,1969.8,1969.4,0.001]
[1771262438668,0.48337958,1969.8,1969.5,0.001]
[1771262439581,0.48227958,1969.6,1969.0,0.001]
[1771262439892,0.48227958,1969.6,1969.1,0.001]
[1771262441695,0.48227958,1969.4,1969.1,0.001]
[1771262442395,0.48227958,1969.4,1969.3,0.001]
[1771262442594,0.48227958,1969.4,1969.1,0.001]
[1771262443620,1.26929325,1969.6,1969.1,0.001]
[1771262443789,3.11155866,1969.7,1969.1,0.001]
[1771262444302,1.36,1969.7,1969.1,0.46846196]
[1771262445790,0.0011,1969.8,1969.3,0.46746196]
[1771262447839,0.0011,1969.8,1969.4,1.26942215]
[1771262449522,0.0011,1969.8,1969.5,0.47037846]
[1771262450044,0.0011,1969.8,1969.5,1.73968183]
[1771262451022,0.0011,1969.8,1969.6,0.46937846]
[1771262451225,0.0011,1970.1,1969.6,0.46937846]
[1771262452008,0.0011,1970.1,1969.8,0.46937846]
[1771262454032,0.0011,1970.0,1969.9,1.26909995]
[1771262454624,0.0011,1970.2,1969.9,1.26909995]
[1771262454832,0.0011,1970.2,1969.9,1.73847841]
[1771262455843,0.0011,1970.2,1969.9,3.24347841]
[1771262458328,0.0011,1970.2,1970.0,0.46937846]
[1771262459260,0.0011,1970.2,1970.1,1.26897111]
[1771262460034,0.0011,1970.4,1970.1,1.73834957]
[1771262462365,0.0011,1970.4,1970.2,1.512]
[1771262463086,0.49786082,1970.9,1970.3,0.46937846]
[1771262463267,0.49278699,1970.8,1969.7,1.73856491]
[1771262463429,0.49278699,1970.7,1969.8,1.514]
[1771262464475,0.49278699,1970.5,1969.8,2.78312614]
[1771262466546,1.7615649,1970.4,1969.9,0.001]
[1771262466887,0.49278699,1970.4,1969.9,0.001]
[1771262467044,5.075839,1970.6,1969.9,0.47037846]
[1771262467045,1.76259597,1970.6,1969.9,0.47037846]
[1771262467482,0.49388699,1970.6,1969.9,0.47037846]
[1771262468045,0.0011,1970.6,1969.9,0.47037846]
[1771262469675,0.0011,1970.6,1970.0,1.73841399]
[1771262471070,0.49388699,1970.6,1970.0,1.73841399]
[1771262475481,0.0011,1970.9,1970.2,0.45108674]
[1771262475684,0.45240404,1970.8,1970.1,0.45108674]
[1771262475849,0.45240404,1970.8,1970.0,3.22904844]
[1771262479188,0.0011,1970.5,1970.0,3.23004844]
[1771262491401,0.0011,1970.5,1970.1,0.45108674]
[1771262492500,0.0011,1970.5,1970.1,5.52679261]
[1771262492796,0.0011,1970.5,1970.1,5.07570587]
[1771262493402,0.0011,1970.5,1970.1,1.26897111]
[1771262493604,0.45350404,1970.5,1970.1,0.001]
[1771262497790,0.0011,1970.5,1970.1,0.001]
[1771262506419,0.0011,1970.5,1970.2,0.001]
[1771262518822,0.4896979,1970.5,1970.2,0.001]
[1771262519705,0.4896979,1970.5,1970.3,0.001]
[1771262520432,0.0011,1970.5,1970.3,0.001]
[1771262523313,0.0011,1970.5,1970.3,0.49327501]
[1771262526105,0.0011,1970.5,1970.4,1.76105292]
[1771262526311,0.0011,1970.8,1970.4,1.76105292]
[1771262526312,0.0011,1970.8,1970.5,0.49227501]
[1771262526507,1.75683432,1971.3,1970.5,0.49227501]
[1771262528330,0.4885979,1971.2,1970.6,1.26864914]
[1771262529830,1.75677882,1971.4,1970.7,0.49227501]
[1771262530031,1.7566549,1971.6,1970.9,0.49227501]
[1771262530228,0.4885979,1971.5,1970.9,0.49227501]
[1771262531528,1.75653927,1971.7,1971.0,1.76066668]
[1771262531735,1.0164,1972.1,1971.0,1.76066668]
[1771262531736,0.4885979,1971.9,1971.2,7.42885868]
[1771262532045,0.914,1972.1,1971.4,7.92113369]
[1771262532046,1.26777399,1972.0,1971.4,7.92113369]
[1771262532339,1.26777399,1972.0,1971.4,0.49227501]
[1771262532541,6.47337383,1972.1,1971.5,0.49227501]
[1771262532542,0.914,1972.1,1971.5,0.49227501]
[1771262532839,1.75611961,1972.4,1971.7,0.49227501]
[1771262533038,0.4885979,1972.4,1971.8,0.49227501]
[1771262533342,0.4885979,1972.5,1971.9,0.49227501]
[1771262533518,0.4885979,1972.5,1972.0,1.26774847]
[1771262533717,1.26741163,1972.6,1972.0,1.76002348]
[1771262534045,1.26741163,1972.6,1971.9,5.07118663]
[1771262534046,0.49108819,1972.1,1971.1,7.42885868]
[1771262534215,0.49108819,1971.8,1971.0,1.75707231]
[1771262534537,1.348,1972.0,1971.2,0.48873297]
[1771262534741,1.83908819,1972.0,1971.2,0.48873297]
[1771262535725,1.26781276,1971.9,1971.2,1.75693864]
[1771262536021,0.49108819,1971.8,1971.1,1.26829097]
[1771262536226,0.49108819,1971.8,1971.1,1.75702394]
[1771262536630,1.26781276,1971.9,1971.2,0.48873297]
[1771262537955,1.26781276,1971.9,1971.3,1.26819865]
[1771262539639,1.75890095,1971.9,1971.3,1.26819865]
[1771262542063,10.5273678,1972.1,1971.3,0.48873297]
[1771262542235,1.26774837,1972.1,1971.4,0.48873297]
[1771262543055,1.75883656,1972.1,1971.4,0.48873297]
[1771262544553,1.75883656,1972.1,1971.5,1.26806999]
[1771262544857,1.75883656,1972.1,1971.5,1.75680296]
[1771262545428,1.26774837,1972.1,1971.6,0.48873297]
[1771262545832,0.0011,1972.0,1971.6,0.48873297]
[1771262546134,0.0011,1972.0,1971.5,1.26906999]
[1771262546473,0.0011,1972.0,1971.6,0.48873297]
[1771262546772,0.0011,1972.0,1971.7,1.75667434]
[1771262547573,0.0011,1972.0,1971.7,1.26794137]
[1771262547769,0.0011,1972.0,1971.5,5.56188323]
[1771262548076,0.49218819,1972.0,1971.5,1.26906886]
[1771262549542,0.49108819,1971.9,1971.5,0.001]
[1771262551077,1.26888573,1972.0,1971.5,0.001]
[1771262551951,0.0011,1972.0,1971.5,0.48973297]
[1771262553978,0.0011,1972.0,1971.5,1.75777813]
[1771262554183,0.49108819,1972.5,1971.8,0.48873297]
[1771262554483,0.914,1972.6,1971.9,7.42053124]
[1771262554705,0.914,1972.6,1972.0,0.48873297]
[1771262554845,2.61797749,1973.2,1972.3,7.90926421]
[1771262555057,0.49108819,1972.7,1971.7,9.45126421]
[1771262555270,0.49108819,1972.5,1971.8,0.48873297]
[1771262555478,1.26697749,1973.2,1971.8,0.48873297]
[1771262555479,0.49108819,1972.7,1971.9,7.42053124]
[1771262555678,0.49108819,1972.7,1972.0,0.48873297]
[1771262555874,0.49108819,1972.7,1972.1,1.542]
[1771262556182,1.75842918,1972.7,1972.1,2.80962835]
[1771262556580,1.75842918,1972.7,1972.1,3.29836132]
[1771262556782,1.26728456,1972.8,1972.1,2.80962835]
[1771262557088,1.26721203,1972.9,1972.2,0.48873297]
[1771262557671,3.10923172,1973.0,1972.2,0.48873297]
[1771262558477,3.10923172,1973.0,1972.3,1.75628861]
[1771262558665,1.26714353,1973.0,1972.4,0.48873297]
[1771262558874,1.75817913,1973.1,1972.4,0.48873297]
[1771262559765,0.0011,1972.9,1972.4,0.48873297]
[1771262560565,0.0011,1972.9,1972.4,1.75616336]
[1771262561284,0.0011,1972.9,1972.4,1.26743039]
[1771262561480,0.49218819,1972.9,1972.2,0.48873297]
[1771262561688,0.49218819,1972.9,1972.1,2.80964789]
[1771262561984,0.0076152,1973.3,1972.7,7.42053124]
[1771262562191,0.0076152,1973.3,1972.9,7.42053124]
[1771262562560,0.0076152,1973.3,1972.9,1.26717015]
[1771262563185,1.26657753,1973.9,1973.2,0.48873297]
[1771262563389,1.26643106,1974.1,1973.3,7.90926421]
[1771262563587,1.26643106,1974.1,1973.4,0.48873297]
[1771262563758,1.75746122,1974.2,1973.4,0.48873297]
[1771262564078,1.26631965,1974.3,1973.6,0.46120876]
[1771262564482,2.61621638,1974.4,1973.8,0.46120876]
[1771262564689,3.0893317,1974.4,1973.7,1.26665653]
[1771262565382,1.82311532,1974.4,1973.7,1.72786529]
[1771262565590,1.29207465,1974.7,1974.2,7.42053124]
[1771262565755,2.41697829,1974.7,1974.2,1.543]
[1771262565955,1.15094812,1974.7,1974.2,1.543]
[1771262566184,1.26572254,1975.2,1974.3,0.46120876]
[1771262566373,1.26567704,1975.3,1974.3,0.46120876]
[1771262566688,5.06185312,1975.6,1974.5,0.46120876]
[1771262566888,1.26543834,1975.6,1974.7,0.46120876]
[1771262567188,0.47311532,1975.5,1974.5,0.46120876]
[1771262567483,0.47311532,1975.5,1974.6,1.542]
[1771262567984,0.47311532,1975.5,1974.5,1.541]
[1771262568794,1.73119191,1975.4,1974.5,1.541]
[1771262569397,1.73119191,1975.4,1974.5,3.25841511]
[1771262569572,0.46562545,1975.9,1974.5,3.25841511]
[1771262569903,0.46562545,1975.9,1974.6,1.54]
[1771262571015,0.46562545,1975.7,1974.6,1.54]
[1771262571310,0.46562545,1975.5,1974.6,2.80607919]
[1771262571492,1.26531025,1975.8,1974.7,0.45127544]
[1771262571493,0.46562545,1975.7,1974.7,0.45127544]
[1771262571794,1.26531025,1975.8,1974.7,0.45127544]
[1771262572492,1.7309357,1975.8,1974.7,0.45127544]
[1771262572701,1.26511816,1976.1,1974.9,0.45127544]
[1771262573069,5.06044076,1976.2,1975.1,0.45127544]
[1771262573272,5.06044076,1976.2,1975.2,1.80527544]
[1771262573588,5.06044076,1976.2,1975.3,0.45127544]
[1771262574298,1.26486213,1976.5,1975.3,0.45127544]
[1771262574688,0.0011,1976.0,1975.3,0.45127544]
[1771262575096,5.05944852,1976.6,1975.3,0.45127544]
[1771262575097,5.05944852,1976.6,1975.8,0.00507382]
[1771262575405,11.36132926,1979.4,1975.8,0.00507382]
[1771262575406,5.05847891,1976.9,1975.9,1.98827544]
[1771262575589,5.05847891,1976.9,1975.9,1.537]
[1771262575590,0.0011,1976.3,1975.9,1.537]
[1771262576567,0.0011,1976.3,1975.8,0.00507382]
[1771262577799,0.46672545,1976.3,1975.8,0.00507382]
[1771262578169,0.46672545,1976.3,1975.4,1.535]
[1771262578503,0.46672545,1976.3,1975.4,2.80055973]
[1771262578797,0.0011,1976.3,1975.5,0.45127544]
[1771262579188,0.0011,1976.3,1975.7,1.26537429]
[1771262579590,0.0011,1976.3,1975.8,0.45127544]
[1771262580603,0.0011,1976.3,1975.7,1.26537429]
[1771262580904,0.0011,1976.3,1975.5,1.2654633]
[1771262581108,0.46672545,1976.3,1975.4,2.80055065]
[1771262581303,0.0011,1976.3,1975.5,0.45127544]
[1771262581882,0.0011,1976.3,1975.4,2.80055065]
[1771262583011,0.46672545,1976.3,1975.2,1.71691123]
[1771262583311,1.73067959,1976.2,1975.1,2.79872598]
[1771262583510,0.46562545,1976.1,1975.1,1.533]
[1771262583814,0.46562545,1976.1,1975.1,2.79875865]
[1771262583986,1.26505414,1976.2,1975.2,0.45127544]
[1771262586505,1.26505414,1976.2,1975.3,1.26563053]
[1771262587012,1.26505414,1976.2,1975.2,1.26569461]
[1771262587218,0.46562545,1976.1,1975.2,1.26569461]
[1771262587595,1.26505414,1976.2,1975.3,0.45127544]
[1771262588890,1.26505414,1976.2,1975.4,1.26556646]
[1771262589899,1.26505414,1976.2,1975.3,1.71685837]
[1771262590623,0.46562545,1976.1,1975.0,1.26582278]
[1771262590923,1.26518218,1976.0,1975.2,2.79767823]
[1771262591123,1.26518218,1976.0,1975.2,3.24895367]
[1771262591322,1.26518218,1976.0,1975.2,1.98327544]
[1771262591529,1.26518218,1976.0,1975.2,3.24896525]
[1771262592807,1.26518218,1976.0,1974.9,0.45127544]
[1771262593002,1.26531025,1975.8,1975.0,1.531]
[1771262593526,1.26531025,1975.8,1975.0,1.98227544]
[1771262594927,1.26531025,1975.8,1975.0,3.24805305]
[1771262595098,1.71852466,1975.8,1975.0,1.531]
[1771262596236,0.45321441,1975.7,1975.0,2.79681617]
[1771262596401,1.26531025,1975.8,1975.0,2.79681617]
[1771262597233,5.06124101,1975.9,1975.0,2.79681617]
[1771262598133,5.51344755,1976.2,1975.2,0.45485495]
[1771262598432,1.26505414,1976.2,1975.3,0.45485495]
[1771262598926,0.45321441,1976.1,1975.0,0.45485495]
[1771262599098,1.71839659,1976.0,1974.9,3.24974183]
[1771262599697,1.71839659,1976.0,1975.0,0.45485495]
[1771262599897,0.45321441,1975.9,1975.0,0.45485495]
[1771262600124,1.26518218,1976.0,1975.0,0.45485495]
[1771262601041,0.45321441,1975.9,1974.9,2.79488688]
[1771262601204,1.26531025,1975.8,1975.0,0.001]
[1771262601401,1.26529736,1975.9,1975.0,0.001]
[1771262601629,1.71851177,1975.9,1975.0,0.001]
[1771262601812,0.45321441,1975.8,1975.0,0.001]
[1771262604107,1.7185887,1975.7,1975.0,0.001]
[1771262604431,0.45321441,1975.6,1975.0,0.001]
[1771262606752,0.45321441,1975.4,1974.8,0.001]
[1771262608327,1.26563053,1975.3,1974.8,0.001]
[1771262609354,1.71884494,1975.3,1974.8,0.001]
[1771262610253,0.45321441,1975.2,1974.8,0.001]
[1771262611221,0.45321441,1975.2,1974.4,0.912]
[1771262611853,0.45321441,1975.0,1973.9,1.72133806]
[1771262612151,0.45321441,1975.0,1973.9,1.523]
[1771262612321,0.45321441,1974.8,1973.9,2.78952325]
[1771262612522,0.45321441,1974.8,1973.9,1.523]
[1771262613455,0.45321441,1974.8,1973.8,0.912]
[1771262613923,0.45321441,1974.8,1973.3,2.51787805]
[1771262614355,1.26601509,1974.7,1973.3,2.51787805]
[1771262614552,0.45321441,1974.5,1973.3,2.51787805]
[1771262614758,0.45321441,1974.5,1973.3,1.251]
[1771262614927,0.45321441,1974.5,1973.3,0.45485495]
[1771262616939,1.71942186,1974.4,1973.4,1.26684909]
[1771262617136,0.45321441,1974.3,1973.3,1.72171875]
[1771262617341,0.45321441,1974.3,1973.1,1.72186186]
[1771262617542,0.45321441,1974.3,1973.2,0.45485495]
[1771262617957,0.45321441,1974.3,1973.0,6.59035471]
[1771262617958,0.45321441,1974.3,1973.0,3.24391952]
[1771262619158,0.45321441,1974.1,1973.0,3.24391952]
[1771262621659,1.26646403,1974.0,1973.1,0.45485495]
[1771262624939,1.75167664,1975.0,1974.0,0.49198751]
[1771262625138,0.48585386,1974.9,1974.0,0.49198751]
[1771262625446,0.48585386,1974.9,1973.8,0.49198751]
[1771262625654,1.26595098,1974.8,1973.9,1.26652819]
[1771262625865,1.26595098,1974.8,1973.9,1.7585157]
[1771262626166,1.26595098,1974.8,1974.0,0.49198751]
[1771262626875,1.26575869,1975.1,1974.0,0.49198751]
[1771262627672,1.75161255,1975.1,1974.1,1.26639987]
[1771262627970,0.48585386,1975.0,1974.2,1.521]
[1771262629260,1.26575869,1975.1,1974.2,1.521]
[1771262629855,0.0011,1974.8,1974.3,1.26627158]
[1771262631569,0.0011,1974.8,1974.2,2.78728655]
[1771262632882,0.0011,1974.8,1974.2,1.521]
[1771262635190,0.0011,1974.8,1974.2,2.78733566]
[1771262637589,0.0011,1974.8,1974.3,0.48673165]
[1771262639193,0.0011,1974.8,1974.2,2.78733566]
[1771262640895,0.45164599,1974.8,1974.2,1.521]
[1771262641092,0.0011,1974.8,1974.2,2.78733454]
[1771262641399,0.0011,1974.8,1974.2,1.521]
[1771262641591,0.0011,1974.8,1974.2,2.78733528]
[1771262642902,0.0011,1974.8,1974.2,1.521]
[1771262643696,0.45164599,1974.8,1974.2,1.521]
[1771262643902,0.45164599,1974.8,1974.3,0.001]
[1771262644208,0.0011,1974.7,1974.3,0.001]
[1771262646211,1.26711509,1974.7,1974.3,0.001]
[1771262649401,1.71766108,1974.7,1974.3,0.001]
[1771262650012,1.26711509,1974.7,1974.3,0.001]
[1771262651823,1.26706196,1974.8,1974.3,0.48773165]
[1771262652014,0.45054599,1974.7,1974.3,0.001]
[1771262652206,0.45054599,1974.7,1974.0,0.001]
[1771262653023,0.45054599,1974.5,1974.0,0.001]
[1771262654926,1.72839174,1974.4,1973.5,1.72963861]
[1771262656029,0.46218429,1974.3,1973.5,1.72963861]
[1771262657463,1.26633573,1974.2,1973.5,1.72963861]
[1771262657652,1.26633573,1974.2,1973.6,0.46286173]
[1771262658166,1.2662417,1974.4,1973.6,0.46286173]
[1771262658517,1.2662417,1974.4,1973.6,0.46386173]
[1771262659939,5.06468367,1974.5,1973.8,0.46286173]
[1771262662451,5.06468367,1974.5,1973.8,1.72940335]
[1771262662774,5.52686796,1974.5,1973.7,1.72949125]
[1771262664844,5.52686796,1974.5,1973.8,0.46286173]
[1771262665365,0.0011,1974.7,1973.8,0.46286173]
[1771262666076,1.26711575,1974.7,1973.8,0.46286173]
[1771262666275,1.72930004,1974.7,1973.8,0.46286173]
[1771262666571,1.72930004,1974.7,1973.9,1.513]
[1771262666746,1.26711575,1974.7,1974.0,0.46286173]
[1771262667554,0.46328429,1974.7,1973.9,2.77952819]
[1771262667880,0.46328429,1974.7,1973.9,1.26652819]
[1771262668961,0.0011,1974.7,1974.0,0.46286173]
[1771262670155,0.46328429,1974.7,1973.8,1.97486173]
[1771262670356,0.46328429,1974.7,1973.8,3.24141542]
[1771262672390,1.26716363,1974.7,1973.9,0.46286173]
[1771262672886,1.72934792,1974.7,1973.9,0.46286173]
[1771262673267,0.0011,1974.6,1973.9,0.46286173]
[1771262673668,0.0011,1974.6,1973.8,2.77955369]
[1771262673669,0.46328429,1974.6,1973.8,1.513]
[1771262673869,0.46328429,1974.6,1973.8,0.001]
[1771262674269,0.46218429,1974.4,1973.6,0.001]
[1771262675689,1.26614332,1974.5,1973.6,0.46386173]
[1771262676273,1.72832761,1974.5,1973.6,0.46386173]
[1771262676669,0.46218429,1974.4,1973.6,0.46386173]
[1771262676959,0.46218429,1974.4,1973.6,0.001]
[1771262677687,1.26614332,1974.5,1973.6,1.73057805]
[1771262678001,1.72832761,1974.5,1973.7,0.46286173]
[1771262678978,1.72832761,1974.5,1973.8,1.26659235]
[1771262679383,1.26614332,1974.5,1973.8,1.72945408]
[1771262679795,1.26614332,1974.5,1973.8,0.46286173]
[1771262681395,1.2671792,1974.6,1974.0,0.46286173]
[1771262683415,0.0011,1974.6,1974.1,1.26639987]
[1771262684396,0.0011,1974.6,1973.9,3.23114642]
[1771262684596,0.0011,1974.6,1973.9,0.45866215]
[1771262684768,0.45806881,1974.6,1973.8,1.2665797]
[1771262686582,1.26614332,1974.5,1973.8,1.2665797]
[1771262686783,1.26724332,1974.5,1973.8,1.2665797]
[1771262687197,1.72421213,1974.5,1973.8,1.2665797]
[1771262687399,0.45696881,1974.4,1973.7,0.001]
[1771262688805,0.47533442,1974.2,1973.7,0.001]
[1771262691099,1.26639987,1974.1,1973.7,0.001]